Cogmind - Beta 13 X1 @@@ ROGUE MODE // 2023.12.05 @ 19:19:23 Player: leiavoia Result: Destroyed by G-34 Mercenary with Small Laser Performance ------------- Evolutions (0) 0 Regions Visited (4) 800 Robots Destroyed (31) 155 Value Destroyed (690) 690 Prototype IDs (0) 0 Alien Tech Used (0) 0 Bonus (-18) -18 TOTAL SCORE: 1627 Bonus ------- Follower Combat Kills 42 Friendly Fire -60 Cogmind --------- Core Integrity 0/250 Matter 20/300 Energy 249/250 System Corruption 10% Temperature Cool (86) Movement Treading (320) Ox2 Location -9/Mines Parts ------- > --- POWER (1) -------- Ion Engine > --- PROPULSION (2) --- Light Treads Light Treads > --- UTILITY (2) ------ High-capacity Storage Unit High-capacity Storage Unit > --- WEAPON (2) ------- Medium Laser Shotgun > --- INVENTORY (20) --- Light Ion Engine Light Treads Light Treads Light Treads High-capacity Matter Pod (200) Improved Terrain Scanner Seismic Detector Heavy Armor Plating Shield Generator EM Shotgun Rocket Launcher Mini Grenade Launcher Mini Grenade Launcher Mini Grenade Launcher Mace Peak State ------------ > --- POWER ------------ Light Nuclear Core > --- PROPULSION ------- Light Treads Light Treads > --- UTILITY ---------- High-capacity Storage Unit Improved Light Armor Plating > --- WEAPON ----------- Shotgun Shotgun > --- INVENTORY -------- Ion Engine Light Ion Engine Light Treads Light Treads Light Treads High-capacity Storage Unit High-capacity Matter Pod Improved Terrain Scanner Seismic Detector Heavy Armor Plating Shield Generator Medium Laser Rocket Launcher Mini Grenade Launcher Mini Grenade Launcher Mini Grenade Launcher Mace [Rating: 16] Favorites ----------- Power Light Nuclear Core Engine Ion Engine Power Core Light Nuclear Core Propulsion Light Treads Treads Light Treads Leg Aluminum Leg Utility Large Storage Unit Device Seismic Detector Storage Large Storage Unit Protection Improved Light Armor Plating Weapon Shotgun Energy Gun Medium Laser Ballistic Gun Shotgun Launcher Mini Grenade Launcher Impact Weapon Mace Build | -11 -10 -10 -10 -9 ------- Run | Jun Mat Min Exi Min Slots Evolved . | . . . . . Power . | . . . . . Propulsion . | . . . . . Utility . | . . . . . Weapon . | . . . . . Parts Attached 35 | 4 11 8 3 9 Power 3 | . 1 1 . 1 Engine 2 | . 1 . . 1 Core 1 | . . 1 . . Reactor . | . . . . . Propulsion 5 | 2 . 1 1 1 Treads 5 | 2 . 1 1 1 Leg . | . . . . . Wheel . | . . . . . Hover . | . . . . . Flight . | . . . . . Utility 11 | 1 5 3 1 1 Device 1 | 1 . . . . Storage 5 | . 3 . 1 1 Processor . | . . . . . Hackware . | . . . . . Protection 5 | . 2 3 . . Artifact . | . . . . . Weapon 16 | 1 5 3 1 6 Energy Gun 1 | . . . . 1 Energy Cannon . | . . . . . Ballistic Gun 10 | 1 4 2 . 3 Ballistic Cannon . | . . . . . Launcher 4 | . 1 1 . 2 Special Weapon . | . . . . . Impact Weapon 1 | . . . 1 . Slashing Weapon . | . . . . . Piercing Weapon . | . . . . . Special Melee Weapon . | . . . . . Unidentified Prototypes . | . . . . . Parts Lost 5 | . 1 . . 4 Power 2 | . 1 . . 1 Propulsion 1 | . . . . 1 Utility 1 | . . . . 1 Weapon 1 | . . . . 1 Highest Loss Streak 3 | . 1 . . 3 To Critical Strikes . | . . . . . Average Slot Usage (%) 97 | . 100 99 85 99 Engine 7 | . 14 3 . 5 Core 6 | . . 10 14 8 Treads 27 | . 28 27 28 28 Device 2 | . 5 . . . Storage 14 | . 14 14 14 14 Protection 11 | . 8 14 14 13 Ballistic Gun 22 | . 28 27 2 20 Impact Weapon 2 | . . . 12 . Naked Turns . | . . . . . Heaviest Build 54 | 13 34 34 50 54 Greatest Support 40 | 40 40 40 40 40 Greatest Overweight (x) 1 | . . 1 1 1 Average Overweight (x) . | . . . . 1 Largest Inventory Capacity 20 | 8 15 15 20 20 Average Capacity 15 | 8 13 15 18 20 Most Carried 20 | 7 15 15 16 20 Average Carried 14 | 6 12 14 15 18 Final Capacity 20 | 8 15 15 20 20 Final Carried 16 | 7 15 15 16 16 Class Distribution -------------------- 100% | Mutant Dominant Class ---------------- Mutant | -10/Materials Mutant | -10/Mines Mutant | -10/Exiles Mutant | -9/Mines Resources | -11 -10 -10 -10 -9 ----------- Run | Jun Mat Min Exi Min Matter Collected 1212 | 252 554 299 . 107 Remotely . | . . . . . Salvage Created 867 | 67 563 92 . 145 Parts 55 | 7 32 11 . 5 Haulers Intercepted 2 | . 2 . . . Recyclers Shooed . | . . . . . Parts Field Recycled . | . . . . . Retrieved Matter . | . . . . . Parts Self-Destructed . | . . . . . Prevented . | . . . . . Kills | -11 -10 -10 -10 -9 ------- Run | Jun Mat Min Exi Min Combat Hostiles Destroyed 40 | . 11 7 . 22 Guns 19 | . 11 5 . 3 AOE 21 | . . 2 . 19 Classes Destroyed 10 | 2 4 2 . 2 Worker 1 | . . 1 . . Tunneler 3 | 1 . . . 2 Hauler 2 | . 2 . . . Recycler 1 | 1 . . . . Operator 1 | . 1 . . . Watcher 2 | . 2 . . . Swarmer 7 | . . 7 . . Grunt 12 | . 11 . . 1 Demolisher 2 | . . . . 2 Assembled 19 | . . . . 19 Best Kill Streak 21 | 2 3 3 . 21 Combat Bots Only 21 | . 3 3 . 21 Max Kills in Single Turn 6 | 1 1 1 . 6 Gunslinging . | . . . . . Exploded 6 | . . 1 . 6 Melee . | . . . . . Uniques/NPCs Destroyed . | . . . . . Combat | -11 -10 -10 -10 -9 -------- Run | Jun Mat Min Exi Min Damage Taken 1556 | . 604 120 . 832 Core 251 | . 106 10 . 135 Absorbed by Shields . | . . . . . Core Remaining (%) 100 | 100 . . . . Volleys Fired 79 | 2 46 7 . 24 Largest 2 | 2 2 2 . 2 Hottest 73 | 40 46 46 . 73 Shots Fired 141 | 4 90 14 . 33 Gun 123 | 4 88 12 . 19 Cannon . | . . . . . Launcher 18 | . 2 2 . 14 Special . | . . . . . Kinetic 119 | 4 88 12 . 15 Thermal 4 | . . . . 4 Explosive 18 | . 2 2 . 14 Electromagnetic . | . . . . . Robot Hit Streak 10 | 3 9 3 . 10 Robot Miss Streak 5 | . 5 3 . 3 Penetration Max . | . . . . . Secondary Targets 3 | . . 2 . 1 Max Gunslinging Chain 1 | . . 1 . 1 Shots Hit Robots 100 | 3 67 8 . 22 Core Hits 87 | 3 32 8 . 44 Critical Kills . | . . . . . Critical Parts Destroyed 1 | . 1 . . . Critical Strikes 2 | . 1 . . 1 Burn 1 | . . . . 1 Destroy 1 | . 1 . . . Melee Attacks . | . . . . . Impact . | . . . . . Slashing . | . . . . . Piercing . | . . . . . Sneak Attacks . | . . . . . Combat Hostiles . | . . . . . Follow-up Attacks . | . . . . . Damage Inflicted 2851 | 37 1006 341 . 1467 Guns 1421 | 37 988 144 . 252 Cannons . | . . . . . Explosions 1400 | . . 185 . 1215 Melee . | . . . . . Ramming 30 | . 18 12 . . Kinetic 1379 | 37 988 144 . 210 Thermal 42 | . . . . 42 Explosive 1400 | . . 185 . 1215 Electromagnetic . | . . . . . Impact . | . . . . . Slashing . | . . . . . Piercing . | . . . . . Highest Corruption 10 | . 10 10 10 10 Average Corruption 8 | . 3 10 10 10 Corruption Purged . | . . . . . Corruption Blocked . | . . . . . Effects 80 | . 17 30 17 16 Message Errors 18 | . 4 8 2 4 Matter Fused 23 | . 6 7 10 . Heat Flow Errors 10 | . 1 6 1 2 Energy Discharges 9 | . 3 3 1 2 Parts Fused 2 | . . 1 . 1 Data Loss (minor) 9 | . 3 2 1 3 Data Loss (major) 5 | . . 1 2 2 Misfires 3 | . . 2 . 1 Weapon Failures 1 | . . . . 1 Overload Shots . | . . . . . Overflow Damage 88 | . . 12 . 76 Projectiles . | . . . . . Explosions 88 | . . 12 . 76 Melee . | . . . . . Knockbacks 1 | . 1 . . . Impact 1 | . 1 . . . Kinetic . | . . . . . Secondary . | . . . . . Self-Inflicted Damage 97 | . 18 37 . 42 Shots 4 | . 1 1 . 2 Rammed 9 | . 5 4 . . Targets Rammed 9 | . 5 4 . . Kicked . | . . . . . Crushed . | . . . . . Highest Temperature 276 | . 127 276 128 199 Average Temperature 78 | . 16 125 67 64 Received Heat Transfer 404 | . 315 . . 89 Effects 1 | . . 1 . . Energy Bleed 1 | . . 1 . . Siege Activations . | . . . . . Robots Corrupted . | . . . . . Combat Hostiles . | . . . . . Parts Fried . | . . . . . Impact Corruptions . | . . . . . Robots Melted . | . . . . . Combat Hostiles . | . . . . . Parts Melted . | . . . . . Heat Transferred 185 | . . . . 185 Parts Sabotaged . | . . . . . Parts Stolen . | . . . . . Parts Stripped . | . . . . . Power Chain Reactions . | . . . . . Missiles Intercepted . | . . . . . Alert | -11 -10 -10 -10 -9 ------- Run | Jun Mat Min Exi Min Peak Influence 248 | 10 248 232 . 82 Initial 54 | . 6 54 . . Average 102 | 8 105 149 . 25 Maximum Alert Level 1 | . 1 1 . . Low Security (%) 81 | 100 88 57 . 100 Level 1 18 | . 11 42 . . Level 2 . | . . . . . Level 3 . | . . . . . Level 4 . | . . . . . Level 5 . | . . . . . High Security . | . . . . . Max Security . | . . . . . Squads Dispatched 4 | . 4 . . . Investigation 2 | . 2 . . . Extermination . | . . . . . Reinforcement 2 | . 2 . . . Assault . | . . . . . Garrison . | . . . . . Intercept . | . . . . . Searches Triggered . | . . . . . Construction Impeded . | . . . . . Haulers Reinforced . | . . . . . Active Scanning Responses . | . . . . . Cargo Convoy Interrupts . | . . . . . Stealth | -11 -10 -10 -10 -9 --------- Run | Jun Mat Min Exi Min Distress Signals 1 | . 1 . . . Communications Jammed . | . . . . . Distress Signals . | . . . . . Times Spotted 56 | . 22 9 . 25 Peak Tracking Total 20 | . 4 3 . 20 Tactical Retreats 2 | . 2 . . . Traps | -11 -10 -10 -10 -9 ------- Run | Jun Mat Min Exi Min Traps Triggered 9 | . 8 1 . . Indirectly . | . . . . . Trap Hack Attempts . | . . . . . Triggered . | . . . . . Disarmed . | . . . . . Reprogrammed . | . . . . . Reused . | . . . . . Traps Extracted . | . . . . . Installed . | . . . . . Triggered . | . . . . . Machines | -11 -10 -10 -10 -9 ---------- Run | Jun Mat Min Exi Min Machines Disabled . | . . . . . Max in Single Turn . | . . . . . Machines Repaired . | . . . . . Machines Sabotaged . | . . . . . Overloaded Fab Kills . | . . . . . Hacking | -11 -10 -10 -10 -9 --------- Run | Jun Mat Min Exi Min Machines Accessed 9 | . 7 1 1 . Terminals 6 | . 6 . . . Fabricators . | . . . . . Repair Stations . | . . . . . Recycling Units 1 | . 1 . . . Scanalyzers . | . . . . . Garrison Access . | . . . . . Total Hacks 22 | . 20 1 1 . Successful 9 | . 7 1 1 . Failed 13 | . 13 . . . Catastrophic 4 | . 4 . . . Database Lockouts . | . . . . . Manual 20 | . 20 . . . Terminals 18 | . 18 . . . Fabricators . | . . . . . Repair Stations . | . . . . . Recycling Units 2 | . 2 . . . Scanalyzers . | . . . . . Garrison Access . | . . . . . Terminal Hacks 7 | . 5 1 1 . Record 1 | . . . 1 . Robot Analysis 5 | . 5 . . . Open Door 1 | . . 1 . . Fabricator Hacks . | . . . . . Repair Station Hacks . | . . . . . Recycling Unit Hacks 1 | . 1 . . . Retrieve Components 1 | . 1 . . . Scanalyzer . | . . . . . Garrison Access Hacks . | . . . . . Unauthorized Hacks 1 | . 1 . . . Terminals . | . . . . . Fabricators . | . . . . . Repair Stations . | . . . . . Recycling Units 1 | . 1 . . . Tunnel 1 | . 1 . . . Scanalyzers . | . . . . . Garrison Access . | . . . . . Data Cores Recovered . | . . . . . Used . | . . . . . Hacking Detections 6 | . 6 . . . Full Trace Events 1 | . 1 . . . Feedback Events . | . . . . . Feedback Blocked . | . . . . . Robot Schematics Acquired . | . . . . . Robots Built . | . . . . . Authchips . | . . . . . Time . | . . . . . Total Robot Build Rating . | . . . . . Part Schematics Acquired . | . . . . . Parts Built . | . . . . . Authchips . | . . . . . Time . | . . . . . Total Part Build Rating . | . . . . . Parts Repaired . | . . . . . Time . | . . . . . Parts Recycled . | . . . . . Recycled Matter . | . . . . . Retrieved Matter . | . . . . . Retrieved Components . | . . . . . Parts Scanalyzed . | . . . . . Part Schematics Acquired . | . . . . . Parts Damaged . | . . . . . Bothacking | -11 -10 -10 -10 -9 ------------ Run | Jun Mat Min Exi Min Used RIF Installer . | . . . . . Robots Hacked . | . . . . . Non-combat . | . . . . . Combat . | . . . . . Robot Hacks Applied . | . . . . . Relay Couplers Released . | . . . . . Fabnet Peak Effective % . | . . . . . Robots Rewired . | . . . . . Allies Hacked . | . . . . . Hacks Repelled . | . . . . . Allies | -11 -10 -10 -10 -9 -------- Run | Jun Mat Min Exi Min Total Allies 1 | . . 1 . . Largest Group 1 | . . 1 . . Highest-Rated Group 31 | . . 31 . . Highest-Rated Ally 31 | . . 31 . . Total Orders . | . . . . . Ally Attacks 9 | . . 9 . . Total Damage 104 | . . 104 . . Kills 2 | . . 2 . . Allies Corrupted . | . . . . . Allies Melted . | . . . . . Intel | -11 -10 -10 -10 -9 ------- Run | Jun Mat Min Exi Min Robot Analysis Total 5 | . 5 . . . Derelict Logs Recovered 1 | . . . . 1 Drone Launches . | . . . . . Drone Recoveries . | . . . . . Exploration | -11 -10 -10 -10 -9 ------------- Run | Jun Mat Min Exi Min Turns Passed 2943 | 33 1185 756 514 455 Spaces Moved 1411 | 13 557 445 247 149 Core . | . . . . . Treads 1411 | 13 557 445 247 149 Legs . | . . . . . Wheels . | . . . . . Hover . | . . . . . Flight . | . . . . . Fastest Speed 160 | 160 160 160 160 240 Average Speed 176 | 160 160 160 205 240 Slowest Speed 240 | 160 160 240 240 240 Overloaded Moves . | . . . . . Propulsion Burnouts . | . . . . . Robots Hopped . | . . . . . Cave-ins Triggered . | . . . . . Exploration Rate (%) 53 | 3 94 78 62 28 Regions Visited 4 Branch Regions 3 Pre-discovered Areas 3 | . 1 1 1 . Known Exits Taken . | . . . . . Unknown Exits Taken 4 | 1 1 1 1 . Scrap Searched 3 | . . 1 . 2 Spaces Dug 19 | . 19 . . . Terrain Destroyed 116 | . 19 21 . 76 Melee . | . . . . . Projectile . | . . . . . AOE 116 | . 19 21 . 76 Terrain Rammed . | . . . . . Walls Destroyed . | . . . . . Machines Disabled . | . . . . . Actions | -11 -10 -10 -10 -9 --------- Run | Jun Mat Min Exi Min Total 1721 | 19 760 474 255 213 Wait 143 | . 114 3 . 26 Move 1407 | 12 556 444 246 149 Hop . | . . . . . Pick Up 26 | 1 16 2 2 5 Fast Attach 7 | 1 3 3 . . Attach 8 | . 1 . 2 5 Detach 2 | . 1 . 1 . Swap 20 | 3 7 5 1 4 Drop 20 | . 11 6 3 . Fire 79 | 2 46 7 . 24 Melee . | . . . . . Ram . | . . . . . Kick . | . . . . . Crush 9 | . 5 4 . . Escape Stasis . | . . . . . Rewire . | . . . . . Trap . | . . . . . Miscellaneous . | . . . . . Route ------- -11/Junkyard -10/Materials (discovered 5 exits: [*Mat x3] / *Min x2) -10/Mines (discovered 3 exits: [*Mat x2] / *Exi) -10/Exiles -9/Mines (discovered 1 exit: [*Mat]) History --------- Turn | Location | Event 12 | -11/Junkyard | Discovered new exit (range 3) 34 | -11/Junkyard | Entered Materials 262 | -10/Materials | Discovered new exit (range 10) 326 | -10/Materials | Build established: Mutant 454 | -10/Materials | Discovered new exit (range 9) 616 | -10/Materials | Discovered new exit (range 16) 864 | -10/Materials | Discovered new exit (range 7) 1025 | -10/Materials | Discovered new exit (range 6) 1196 | -10/Materials | System corruption reached 10% 1219 | -10/Materials | Entered Mines 1224 | -10/Mines | Escorted by a lone wolf Derelict 1244 | -10/Mines | Learned location of Storage (-7) 1254 | -10/Mines | Found a hidden stash of uninstalled traps 1286 | -10/Mines | Discovered new exit (range 6) 1325 | -10/Mines | Met a Derelict who couldn't figure out how to use a Trap Extractor 1450 | -10/Mines | Discovered new exit (range 13) 1902 | -10/Mines | Received a Rocket Launcher from a helpful Derelict 1959 | -10/Mines | Deemed a non-threat by the Exiles lab entrance 1959 | -10/Mines | Discovered new exit (range 5) 1975 | -10/Mines | Entered Exiles 2014 | -10/Exiles | Met 8R-AWN 2090 | -10/Exiles | Met EX-HEX 2201 | -10/Exiles | Met EX-DEC 2252 | -10/Exiles | Visited The Gauntlet 2376 | -10/Exiles | Learned location of Zion (-6) 2470 | -10/Exiles | Discovered new exit (range 10) 2489 | -10/Exiles | Entered Mines 2590 | -9/Mines | Learned 8 Materials zone layouts 2737 | -9/Mines | Assembled infested the area 2744 | -9/Mines | Core integrity fell below 50% 2745 | -9/Mines | Discovered new exit (range 8) 2773 | -9/Mines | Core integrity fell below 20% 2805 | -9/Mines | Destroyed 21 combat bots 2805 | -9/Mines | Lost 3 parts (1p1n1w) 2944 | -9/Mines | Destroyed by G-34 Mercenary with Small Laser Last Messages --------------- 02782_ as-28690 destroyed. 02784_ Destroyed Asb. Hover Unit. 02784_ as-90458 destroyed. 02788_ The unstable cave ceiling collapses. 02789_ Acquired 5 matter. 02791_ System corrupted: Substantial component data lost. 02793_ The unstable cave ceiling collapses. 02801_ R-06 Scavenger collects Cmb. Airjet. 02807_ System corrupted: Component data lost. 02814_ The unstable cave ceiling collapses. 02840_ System corrupted: Component data lost. 02840_ The unstable cave ceiling collapses. 02866_ T-07 Excavator is excavating. 02930_ C-30 ARC bursts open, deploying its payload. 02930_ G-47 Trooper unfolds itself. 02936_ Imp. Light Armor Plating destroyed. 02940_ G-34 Mercenary suffers critical hit (Burn). 02942_ System corrupted: Component data lost. 02943_ G-34 Mercenary destroyed. 02943_ Switching to secondary target: G-34 Mercenary. Map ----- +----------------------------------------------------+ | ??## ##???????# ###??# #??????????????????????? | | ???#####????????# ##?# #??????????????????????? | | ????????????????# #?#!#??????????????????????? | | ????????????????## #?# #??????????????????????? | | ?????????????????# ##?# #??????????????????????? | | ????????????????## #??# #??????????????????????? | | ???????????###### #??#=#??????????????????????? | | ??????????## #??# #??????????????????????? | | ??????????# """ #??# #??????????????????????? | | ??????????# """ ##?# #??????????????????????? | | ??????????## """ #?# #??????????????????????? | | ???????????## ### #??????????????????????? | | ????????????##### #??????????????????????? | | ????????????????## ######??????????????????????? | | ?????????????????# ##???????????????????????????? | | ????????????????## #????????????????????????????? | | ???????????????## ##???????????????????????????? | | ???????????????# #???????????????????????????? | | ???????????????# #???????????????????????????? | | ???????????????## ##???????????????????????????? | | ????????????????### #???????????????????????#????? | | ?????############## ##???????????????????# #????? | | ????? ## # #####?????????###### #????? | | ???? """ """ # ##???????## #????? | | ???? """ """ ## # # ########## ##????? | | ???# """ """ # # ###ug@ ######?????? | | ???# # "%"# % ######### ##??????????? | | ???# """ < # ### #### #??????####???????????? | | ???# """ # # # # ##?????????????????????? | | ???? """ # # #?????????????????????? | | ???# ## # #???????????????????? | | ???################ ##???????????????????? | | ??????????????????? # ##????????????????????? | | ??????????????????? # #???????????????????? | | ???????????????????## ##???????????????????? | | ??????????????????? # # #???????????????????? | | ??????????????????? # # ##???????????????????? | | ??????????????????? #????????????????????? | | ???????????????????? ?????????????????????? | | ???????????????????? # #???????????????????????? | | ???????????????????? ????????????????????????? | | ???????????????????? ????????????????????????????? | | ?????????????????????????????????????????????????? | | ?????????????????????????????????????????????????? | | ?????????????????????????????????????????????????? | | ?????????????????????????????????????????????????? | | ?????????????????????????????????????????????????? | | ?????????????????????????????????????????????????? | | ?????????????????????????????????????????????????? | | ?????????????????????????????????????????????????? | +----------------------------------------------------+ Best States ------------- Heat Dissipation 25 Energy Generation 14 Energy Capacity 250 Matter Stores 300 Matter Capacity 300 Sight Range 16 Terrain Scan Density 10 Armor Coverage 150 Evasion (%) 40 Recoil Reduction 2 Item Schematics ----------------- None Robot Schematics ------------------ None Fabricated ------------ Nothing Alien Tech Used ----------------- None Achievements -------------- None Challenges ------------ None Game ------ Seed SpikedBladeRedirector Manual? 0 Play Time 00:19:39 Cumulative 1043.7 hours Start 2023.12.05 @ 18:48:16 End 2023.12.05 @ 19:19:23 Sessions 1 Manual Loads 0 Difficulty Rogue Special Mode None Game No. 224 Rogue 192 Adventurer 31 Explorer 1 Win Type - Total 47 Types 33/0/6/7/0/0/1/0/0 Lore% 84 Gallery% 89 Achievement% 80 Wizard Run 0 Options --------- ASCII 0 Keyboard 0 Movement Arrows Keybinds 0 Fullscreen 1 Font 20/Terminus Map View 66x50 Tactical HUD 1 Map Filters NONE Filters NONE Steam 1 RUN: d8923c3f-a037-446c-b672-cb6448ed6458